Cogmind - Beta 16.1 @@@ ROGUE MODE // 2026.05.03 @ 15:36:41 Player: f3-rnm Result: Destroyed by ZX-C33 with Light Assault Rifle Performance ------------- Evolutions (1) 500 Regions Visited (5) 1000 Robots Destroyed (41) 205 Value Destroyed (899) 899 Prototype IDs (27) 540 Alien Tech Used (0) 0 Bonus (300) 300 TOTAL SCORE: 3444 Bonus ------- Aligned with FarCom 300 Cogmind --------- Core Integrity 0/400 Matter 142/300 Energy 100/100 System Corruption 0% Temperature Cool (0) Movement Walking (120) Location -9/Exiles Parts ------- > --- POWER (1) -------- (None) > --- PROPULSION (2) --- Advanced Myomer Leg Advanced Myomer Leg > --- UTILITY (3) ------ Experimental Heat Sink High-capacity Storage Unit > --- WEAPON (3) ------- 8R-AWN's Boregun > --- INVENTORY (20) --- Aluminum Leg Wheel Flying Fortress v7 Improved Heat Sink High-capacity Matter Pod (200) High-capacity Matter Pod (9) Structural Scanner 0b10 Alert Chip Improved Targeting Computer Advanced Weapon Cycler Firepult Rocket Launcher Peak State ------------ > --- POWER ------------ (None) > --- PROPULSION ------- Advanced Myomer Leg Advanced Myomer Leg > --- UTILITY ---------- Experimental Heat Sink High-capacity Storage Unit AS-neutralizer No. 17b > --- WEAPON ----------- 8R-AWN's Boregun 8R-AWN's Boregun Katana > --- INVENTORY -------- Aluminum Leg Wheel Improved Heat Sink High-capacity Matter Pod High-capacity Matter Pod Structural Scanner Improved Targeting Computer Advanced Weapon Cycler Rocket Launcher [Rating: 54] Favorites ----------- Power Light Ion Engine Engine Light Ion Engine Power Core Light Nuclear Core Propulsion Light Treads Treads Light Treads Leg Advanced Myomer Leg Wheel Compact Wheel Utility Core Shielding Device Improved Heat Sink Storage High-capacity Storage Unit Processor Melee Analysis Suite Protection Core Shielding Weapon Light Assault Rifle Energy Gun EM Pulse Gun Energy Cannon Light EM Pulse Cannon Ballistic Gun Light Assault Rifle Ballistic Cannon Light Cannon Launcher Rocket Launcher Slashing Weapon Katana Build | -11 -10 -10 -9 -9 -9 ------- Run | Yrd Mat Min Mat Min Exi Slots Evolved 2 | . . . 2 . . Power . | . . . . . . Propulsion . | . . . . . . Utility 1 | . . . 1 . . Weapon 1 | . . . 1 . . Parts Attached 37 | 7 4 1 5 6 14 Power 3 | 1 . 1 . 1 . Engine 1 | 1 . . . . . Core 2 | . . 1 . 1 . Reactor . | . . . . . . Propulsion 9 | 2 . . 2 1 4 Treads 5 | 2 . . 2 1 . Leg 2 | . . . . . 2 Wheel 2 | . . . . . 2 Hover . | . . . . . . Flight . | . . . . . . Utility 9 | 1 2 . 2 1 3 Device 3 | . . . 1 . 2 Storage 3 | 1 1 . 1 . . Processor 1 | . . . . . 1 Hackware . | . . . . . . Protection 2 | . 1 . . 1 . Artifact . | . . . . . . Weapon 16 | 3 2 . 1 3 7 Energy Gun 4 | 3 . . 1 . . Energy Cannon 1 | . . . . . 1 Ballistic Gun 7 | . 1 . . 2 4 Ballistic Cannon 1 | . 1 . . . . Launcher 2 | . . . . 1 1 Special Weapon . | . . . . . . Impact Weapon . | . . . . . . Slashing Weapon 1 | . . . . . 1 Piercing Weapon . | . . . . . . Special Melee Weapon . | . . . . . . Unidentified Prototypes 4 | . . . . . 4 Parts Lost 21 | . 1 . . 3 17 Power 2 | . . . . 2 . Propulsion 3 | . . . . . 3 Utility 4 | . . . . . 4 Weapon 12 | . 1 . . 1 10 Highest Loss Streak 13 | . 1 . . 3 13 To Critical Strikes 7 | . . . . . 7 Average Backups 13 | 1 9 13 15 16 13 Power 1 | . 1 3 3 . 1 Propulsion 2 | . 2 3 2 2 1 Utility 4 | . . 3 5 7 6 Weapon 5 | . 3 4 4 6 4 Tool/Special . | . . . . . . Unused Backups 19 | . . . 3 3 13 Power 5 | . . . . 2 3 Propulsion 3 | . . . 1 . 2 Utility 8 | . . . 1 1 6 Weapon 3 | . . . 1 . 2 Tool/Special . | . . . . . . Average Slot Usage (%) 91 | . 95 100 98 92 77 Engine 4 | . 14 12 . . . Core 2 | . . 1 11 4 . Treads 21 | . 28 28 22 22 9 Leg 1 | . . . . . 7 Device 7 | . . . 10 11 10 Storage 11 | . 14 14 11 11 11 Protection 10 | . 10 14 11 11 7 Energy Gun 5 | . 15 . 10 3 . Ballistic Gun 15 | . 6 14 11 20 19 Ballistic Cannon 7 | . 6 14 11 7 4 Peak Build Rating 54 | 6 8 11 16 18 54 Average Rating 14 | 4 7 8 15 14 23 On Entrance 9 | . 6 8 11 16 13 Avg Prop Armor Cover (%) 11 | . . . . . 11 Naked Turns . | . . . . . . Heaviest Build 60 | 12 32 30 54 55 60 Greatest Support 60 | 40 40 40 40 40 60 Greatest Overweight (x) 4 | . . . 1 1 4 Average Overweight (x) . | . . . . 1 1 Largest Inventory Capacity 20 | 8 15 15 20 20 20 Average Capacity 17 | 6 14 15 16 20 20 Most Carried 20 | 4 12 15 18 20 20 Average Carried 15 | 1 9 13 15 19 15 Final Capacity 20 | 8 15 15 20 20 20 Final Carried 20 | 4 12 15 18 20 16 Class Distribution -------------------- 51% | Scavenger-Tank 40% | Mutant 5% | Tank 3% | Scavenger-Mutant Dominant Class ---------------- Mutant | -10/Materials Mutant | -10/Mines Scavenger-Tank | -9/Materials Scavenger-Tank | -9/Mines Scavenger-Tank | -9/Exiles Resources | -11 -10 -10 -9 -9 -9 ----------- Run | Yrd Mat Min Mat Min Exi Matter Collected 1587 | 177 213 100 134 576 387 Remotely . | . . . . . . Salvage Created 1398 | . 555 212 225 243 163 Parts 93 | . 36 17 14 19 7 Haulers Intercepted 2 | . 2 . . . . Recyclers Shooed 1 | . . . 1 . . Parts Field Recycled . | . . . . . . Retrieved Matter . | . . . . . . Parts Self-Destructed . | . . . . . . Prevented . | . . . . . . Parts Restored . | . . . . . . Kills | -11 -10 -10 -9 -9 -9 ------- Run | Yrd Mat Min Mat Min Exi Combat Hostiles Destroyed 33 | . 9 7 5 6 6 Melee 1 | . . . . . 1 Guns 12 | . 6 3 2 . 1 Cannons 13 | . 3 4 3 3 . AOE 7 | . . . . 3 4 Classes Destroyed 12 | . 6 1 2 1 2 Worker 1 | . . 1 . . . Builder 1 | . 1 . . . . Tunneler 3 | . 1 . . 2 . Hauler 2 | . 2 . . . . Recycler 3 | . 2 . . 1 . Watcher 1 | . . . 1 . . Swarmer 9 | . 3 3 . 3 . Grunt 14 | . 6 4 2 2 . Duelist 1 | . . . . 1 . Sentry 3 | . . . 3 . . Zionite 2 | . . . . . 2 Assembled 5 | . . . . . 5 Best Kill Streak 5 | . 3 3 3 3 5 Combat Bots Only 5 | . 3 3 3 3 5 Max Kills in Single Turn 4 | . 1 1 1 3 4 Gunslinging . | . . . . . . Exploded 4 | . . . . 3 4 Melee 1 | . . . . . 1 Uniques/NPCs Destroyed 1 | . . . . . 1 8R-AWN (-9/Exiles) Combat | -11 -10 -10 -9 -9 -9 -------- Run | Yrd Mat Min Mat Min Exi Hostile Shots Fired 198 | . 42 21 12 21 102 Missed 40 | . 9 10 1 4 16 Hits 158 | . 33 11 11 17 86 Melee 8 | . . . . 6 2 Projectile 150 | . 33 11 11 11 84 Critical Strikes 41 | . . . . 2 39 Actively Blocked 11 | . . . . . 11 Damage Taken 2513 | . 424 118 154 288 1529 Core 521 | . 80 39 11 56 335 Absorbed by Shields 163 | . . . . . 163 Redirected to Shielding 95 | . 16 9 2 13 55 Core Remaining (%) 76 | 100 . 52 . . . Volleys Fired 130 | . 34 18 11 14 53 Largest 3 | . 2 2 3 3 3 Hottest 115 | . 80 50 115 108 73 Shots Fired 284 | . 68 36 33 37 110 Gun 225 | . 52 18 22 27 106 Cannon 56 | . 16 18 11 8 3 Launcher 3 | . . . . 2 1 Special . | . . . . . . Kinetic 231 | . 32 36 22 32 109 Thermal 14 | . . . 11 3 . Explosive 3 | . . . . 2 1 Electromagnetic 36 | . 36 . . . . Robot Hit Streak 11 | . 7 8 9 11 6 Robot Miss Streak 5 | . 1 5 4 3 3 Penetration Max 1 | . . . . . 1 Secondary Targets . | . . . . . . Shots Hit Robots 191 | . 51 22 22 25 71 Core Hits 86 | . 25 12 19 12 18 Critical Kills 2 | . . . . . 2 Critical Parts Destroyed 3 | . . . . . 3 Critical Strikes 10 | . 1 . 2 . 7 Destroy 5 | . . . . . 5 Blast 2 | . . . 2 . . Corrupt 1 | . 1 . . . . Sever 2 | . . . . . 2 Melee Attacks 24 | . . . . . 24 Impact . | . . . . . . Slashing 24 | . . . . . 24 Piercing . | . . . . . . Sneak Attacks . | . . . . . . Combat Hostiles . | . . . . . . Follow-up Attacks . | . . . . . . Damage Inflicted 3249 | . 656 315 286 560 1432 Guns 1632 | . 480 83 163 250 656 Cannons 689 | . 176 232 123 139 19 Explosions 326 | . . . . 171 155 Melee 602 | . . . . . 602 Ramming . | . . . . . . Kinetic 1790 | . 288 315 171 341 675 Thermal 163 | . . . 115 48 . Explosive 326 | . . . . 171 155 Electromagnetic 368 | . 368 . . . . Impact . | . . . . . . Slashing 602 | . . . . . 602 Piercing . | . . . . . . Highest Corruption . | . . . . . . Average Corruption . | . . . . . . Corruption Purged . | . . . . . . Corruption Blocked . | . . . . . . Overload Shots . | . . . . . . Overflow Damage . | . . . . . . Projectiles . | . . . . . . Explosions . | . . . . . . Melee . | . . . . . . Knockbacks 2 | . . 2 . . . Impact . | . . . . . . Kinetic 2 | . . 2 . . . Secondary . | . . . . . . Self-Inflicted Damage . | . . . . . . Shots . | . . . . . . Rammed . | . . . . . . Targets Rammed . | . . . . . . Kicked . | . . . . . . Crushed . | . . . . . . Highest Temperature 183 | . 183 19 27 9 . Average Temperature 35 | . 53 8 10 5 . Received Heat Transfer 333 | . 204 45 54 30 . Siege Activations . | . . . . . . Martial Activations . | . . . . . . Shielding Activations . | . . . . . . Robots Disrupted . | . . . . . . Combat Hostiles . | . . . . . . Robots Corrupted 1 | . 1 . . . . Combat Hostiles . | . . . . . . Parts Fried 3 | . 3 . . . . Impact Corruptions . | . . . . . . Robots Melted . | . . . . . . Combat Hostiles . | . . . . . . Parts Melted . | . . . . . . Heat Transferred 210 | . . . 150 60 . Parts Sabotaged . | . . . . . . Parts Stolen . | . . . . . . Parts Stripped . | . . . . . . Power Chain Reactions . | . . . . . . Alert | -11 -10 -10 -9 -9 -9 ------- Run | Yrd Mat Min Mat Min Exi Maximum Alert Level . | . . . . . . Low Security (%) 100 | 100 100 100 100 100 . Level 1 . | . . . . . . Level 2 . | . . . . . . Level 3 . | . . . . . . Level 4 . | . . . . . . Level 5 . | . . . . . . High Security . | . . . . . . Max Security . | . . . . . . Peak Influence 126 | . 126 89 71 83 . Initial 19 | . . 19 2 . . Average 19 | . 43 20 21 8 . Influence Increases 775 | . 269 190 148 168 . Destroy 0b10 Robot/C 540 | . 180 140 100 120 . Destroy 0b10 Robot/NC 55 | . 30 5 5 15 . Destroy Leader 136 | . 44 30 42 20 . Destroy Structure 14 | . . . 1 13 . Lose Combat Pursuer 30 | . 15 15 . . . Influence Decreases 775 | . 219 233 155 168 . Entered New Map 36 | . . 31 5 . . Time Decay 729 | . 209 202 150 168 . Lost Part 10 | . 10 . . . . Squads Dispatched 1 | . . . 1 . . Investigation . | . . . . . . Extermination . | . . . . . . Reinforcement 1 | . . . 1 . . Assault . | . . . . . . Garrison . | . . . . . . Intercept . | . . . . . . Searches Triggered . | . . . . . . Construction Impeded . | . . . . . . Haulers Reinforced . | . . . . . . Active Scanning Responses . | . . . . . . Cargo Convoy Interrupts . | . . . . . . Stealth | -11 -10 -10 -9 -9 -9 --------- Run | Yrd Mat Min Mat Min Exi Distress Signals . | . . . . . . Communications Jammed . | . . . . . . Distress Signals . | . . . . . . Times Spotted 48 | . 12 7 7 5 17 Peak Tracking Total 10 | . 3 2 3 3 10 Tactical Retreats 7 | . 1 1 . . 5 Traps | -11 -10 -10 -9 -9 -9 ------- Run | Yrd Mat Min Mat Min Exi Traps Triggered 2 | . . . . . 2 Indirectly . | . . . . . . Trap Hack Attempts . | . . . . . . Triggered . | . . . . . . Disarmed . | . . . . . . Reprogrammed . | . . . . . . Reused . | . . . . . . Traps Extracted . | . . . . . . Installed 3 | . . . . 1 2 Triggered . | . . . . . . Most Traps Carried 4 | . . . . 4 3 Machines | -11 -10 -10 -9 -9 -9 ---------- Run | Yrd Mat Min Mat Min Exi Machines Disabled 9 | . . . . . 9 Max in Single Turn 2 | . . . . . 2 Machines Repaired . | . . . . . . Machines Dismantled . | . . . . . . Machines Sabotaged . | . . . . . . Overloaded Fab Kills . | . . . . . . Hacking | -11 -10 -10 -9 -9 -9 --------- Run | Yrd Mat Min Mat Min Exi Machines Accessed 2 | . . . . . 2 Terminals . | . . . . . . Fabricators . | . . . . . . Repair Stations . | . . . . . . Recycling Units . | . . . . . . Scanalyzers . | . . . . . . Garrison Access . | . . . . . . Total Hacks 2 | . . . . . 2 Successful 2 | . . . . . 2 Failed . | . . . . . . Catastrophic . | . . . . . . Database Lockouts . | . . . . . . Manual 1 | . . . . . 1 Terminals . | . . . . . . Fabricators . | . . . . . . Repair Stations . | . . . . . . Recycling Units . | . . . . . . Scanalyzers . | . . . . . . Garrison Access . | . . . . . . Terminal Hacks 2 | . . . . . 2 Record 1 | . . . . . 1 Proto ID Catalog 1 | . . . . . 1 Fabricator Hacks . | . . . . . . Repair Station Hacks . | . . . . . . Recycling Unit Hacks . | . . . . . . Scanalyzer . | . . . . . . Garrison Access Hacks . | . . . . . . Unauthorized Hacks . | . . . . . . Terminals . | . . . . . . Fabricators . | . . . . . . Repair Stations . | . . . . . . Recycling Units . | . . . . . . Scanalyzers . | . . . . . . Garrison Access . | . . . . . . Data Cores Recovered . | . . . . . . Used . | . . . . . . Hacking Detections . | . . . . . . Full Trace Events . | . . . . . . Feedback Events . | . . . . . . Feedback Blocked . | . . . . . . Robot Schematics Acquired . | . . . . . . Robots Built . | . . . . . . Authchips . | . . . . . . Time . | . . . . . . Total Robot Build Rating . | . . . . . . Part Schematics Acquired . | . . . . . . Parts Built . | . . . . . . Authchips . | . . . . . . Time . | . . . . . . Total Part Build Rating . | . . . . . . Part Studies Acquired . | . . . . . . Parts Repaired . | . . . . . . Time . | . . . . . . Parts Recycled . | . . . . . . Recycled Matter . | . . . . . . Retrieved Matter . | . . . . . . Retrieved Components . | . . . . . . Parts Scanalyzed . | . . . . . . Part Schematics Acquired . | . . . . . . Parts Damaged . | . . . . . . Bothacking | -11 -10 -10 -9 -9 -9 ------------ Run | Yrd Mat Min Mat Min Exi Used RIF Installer . | . . . . . . Robots Hacked . | . . . . . . Non-combat . | . . . . . . Combat . | . . . . . . Robot Hacks Applied . | . . . . . . Relay Couplers Released . | . . . . . . Fabnet Peak Effective % . | . . . . . . Robots Rewired . | . . . . . . Allies Hacked . | . . . . . . Hacks Repelled . | . . . . . . Allies | -11 -10 -10 -9 -9 -9 -------- Run | Yrd Mat Min Mat Min Exi Total Allies 3 | . . . . 3 . Largest Group 3 | . . . . 3 3 Highest-Rated Group 40 | . . . . 40 40 Highest-Rated Ally 16 | . . . . 16 16 Total Orders 1 | . . . . . 1 STAY 1 | . . . . . 1 Ally Attacks 10 | . . . . . 10 Total Damage 72 | . . . . . 72 Kills . | . . . . . . Allies Corrupted . | . . . . . . Allies Melted . | . . . . . . Intel | -11 -10 -10 -9 -9 -9 ------- Run | Yrd Mat Min Mat Min Exi Active Infowar (turns) . | . . . . . . Robot Analysis Total . | . . . . . . Derelict Logs Recovered 4 | . . 2 . 2 . Drone Launches . | . . . . . . Drone Recoveries . | . . . . . . Exploration | -11 -10 -10 -9 -9 -9 ------------- Run | Yrd Mat Min Mat Min Exi Turns Passed 4740 | 136 839 631 455 1688 991 Spaces Moved 2237 | 78 442 360 218 669 470 Core 2 | 2 . . . . . Treads 1837 | 76 442 360 218 669 72 Legs 219 | . . . . . 219 Wheels 179 | . . . . . 179 Hover . | . . . . . . Flight . | . . . . . . Fastest Speed 50 | 50 160 160 160 240 120 Average Speed 183 | 157 160 160 182 240 148 Slowest Speed 240 | 160 160 160 240 240 240 Overloaded Moves . | . . . . . . Propulsion Burnouts . | . . . . . . Robots Hopped . | . . . . . . Potential Cave-ins . | . . . . . . Cave-ins Triggered . | . . . . . . Exploration Rate (%) 55 | 5 73 72 15 99 69 Regions Visited 5 Branch Regions 3 Pre-discovered Areas 3 | . . 1 . 1 1 Known Exits Taken . | . . . . . . Unknown Exits Taken 5 | 1 1 1 1 1 . Scrap Searched 2 | . . 2 . . . Spaces Dug . | . . . . . . Terrain Destroyed 30 | . . . . 14 16 Melee . | . . . . . . Projectile 11 | . . . . . 11 AOE 18 | . . . . 14 4 Terrain Rammed . | . . . . . . Walls Destroyed . | . . . . . . Machines Disabled . | . . . . . . Actions | -11 -10 -10 -9 -9 -9 --------- Run | Yrd Mat Min Mat Min Exi Total 2605 | 88 509 383 257 726 642 Wait 95 | . 19 1 7 18 50 Move 2232 | 77 441 359 217 668 470 Hop . | . . . . . . Pick Up 45 | 4 10 3 9 9 10 Fast Attach 15 | 6 1 . 1 1 6 Attach 15 | . 2 . 1 3 9 Detach . | . . . . . . Swap 21 | 1 1 1 3 7 8 Drop 25 | . 1 1 8 5 10 Fire 130 | . 34 18 11 14 53 Melee 24 | . . . . . 24 Ram . | . . . . . . Kick . | . . . . . . Crush . | . . . . . . Escape Stasis . | . . . . . . Rewire . | . . . . . . Trap 3 | . . . . 1 2 Miscellaneous . | . . . . . . Route ------- -11/Scrapyard -10/Materials (discovered 3 exits: [*Mat x2] / [*Min]) -10/Mines (discovered 2 exits: [*Mat x2]) -9/Materials -9/Mines (discovered 4 exits: [*Mat x2] / *Exi / [*Zio]) -9/Exiles History --------- Turn | Location | Event 12 | -11/Scrapyard | Discovered new exit (range 15) 137 | -11/Scrapyard | Entered Materials 306 | -10/Materials | Build established: Mutant 324 | -10/Materials | Discovered new exit (range 16) 708 | -10/Materials | Discovered new exit (range 16) 894 | -10/Materials | Discovered new exit (range 8) 976 | -10/Materials | Entered Mines 1137 | -10/Mines | Learned location of Zion (-7) 1138 | -10/Mines | Discovered new exit (range 4) 1238 | -10/Mines | Received a Rocket Launcher from a helpful Derelict 1572 | -10/Mines | Learned Materials garrison access intel 1573 | -10/Mines | Discovered new exit (range 11) 1607 | -10/Mines | Entered Materials 1607 | -9/Materials | Evolved 2 slots: Utility x1, Weapon x1 1780 | -9/Materials | Discovered new exit (range 16) 2062 | -9/Materials | Entered Mines 2105 | -9/Mines | Build established: Scavenger-Tank 2190 | -9/Mines | Learned location of Storage (-9) 2202 | -9/Mines | Learned 2 Materials zone layouts 2289 | -9/Mines | Found a hidden stash of uninstalled traps 2506 | -9/Mines | Deemed a non-threat by the Exiles lab entrance 2607 | -9/Mines | A Derelict revealed a hidden shortcut to a safe place 2668 | -9/Mines | Discovered new exit (range 10) 2712 | -9/Mines | Lost 3 parts (2p1w) 2887 | -9/Mines | Discovered new exit (range 6) 2948 | -9/Mines | Assembled infested the area 3175 | -9/Mines | Assisted by bots powering up and referring to "LRC-V3" 3734 | -9/Mines | Discovered new exit (range 5) 3750 | -9/Mines | Entered Exiles 3750 | -9/Exiles | Accompanied by 3 allies 3815 | -9/Exiles | Met 8R-AWN 3856 | -9/Exiles | Met EX-HEX 3928 | -9/Exiles | Met EX-BIN 3948 | -9/Exiles | Aligned with FarCom system 3950 | -9/Exiles | Given EX-Vault access code 3986 | -9/Exiles | Opened EX-Vault 4025 | -9/Exiles | Warned to stay clear of 0b10 Research branches 4071 | -9/Exiles | Met EX-DEC 4163 | -9/Exiles | Attacked by the Exiles 4237 | -9/Exiles | Lost 3 allies 4336 | -9/Exiles | Core integrity fell below 50% 4386 | -9/Exiles | Core integrity fell below 20% 4390 | -9/Exiles | Destroyed 8R-AWN 4401 | -9/Exiles | Found Prototype Ballistic Gun 4401 | -9/Exiles | Identified 8R-AWN's Boregun 4404 | -9/Exiles | Found 8R-AWN's Boregun 4412 | -9/Exiles | Found Prototype Device 4412 | -9/Exiles | Identified AS-neutralizer No. 17b 4416 | -9/Exiles | Lost 13 parts (3n3u7w) 4621 | -9/Exiles | Found Firepult 4625 | -9/Exiles | Found Flying Fortress v7 4632 | -9/Exiles | Found 0b10 Alert Chip 4741 | -9/Exiles | Destroyed by ZX-C33 with Light Assault Rifle Last Messages --------------- 04621_ Acquired Firepult. 04625_ Acquired Flying Fortress v7. 04632_ Acquired 0b10 Alert Chip. 04713_ HV Slug penetrates AM-PHS. 04713_ AM-PHS suffers critical hit (Destroy). 04713_ Destroyed Lgt. Ion Engine. 04715_ HV Slug penetrates Wall. 04719_ HV Slug penetrates W1-DM0. 04719_ W1-DM0 suffers critical hit (Destroy). 04719_ Destroyed Mak. Leg. 04723_ HV Slug penetrates W1-DM0. 04725_ W1-DM0 suffers critical hit (Destroy). 04725_ W1-DM0 destroyed. 04725_ HV Slug penetrates Wall. 04734_ Acquired 24 matter. 04738_ HV Slug penetrates Wall. 04740_ HV Slug penetrates ZX-C33. 04740_ HV Slug penetrates DK-RAY. 04740_ DK-RAY suffers critical hit (Destroy). 04740_ DK-RAY destroyed. Map ----- +----------------------------------------------------+ | ?????????## " " """""" | | ??????????# #" ######""" | | ??????????### ##????#####""" | | ???????????## """##?????????##""" | | ???????????#"" """##???????????#"""" | | ???????????#"" ""#????????????#"" | | ???????????#"" ###?####??????"""" | | ???????????#""" ## ###??"" | | ???????????#"" """" | | ???????????##"" | | ????????????#""" | | ????????????## | | ?????????????#" " "" | | ?????????????#""" ""##??#?""" " " | | ?????????????#"" ""###??????###""" " | | ?????????????#" """"##??????????###""" | | ?????????????#""" """#?????????????###? | | ?????????????## ""##????????????????? | | ??????????????#"" """##?????????????????? | | ??????????????##""" ##??????????????????? | | ???????????????##"""" ##???????????????????? | | ????????????????### #????????????????????? | | ??????????????????##### ##????????????????????? | | ??????????????????????## #?????????????????????? | | ???????????????????????# #?????????????????????? | | ???????????????????????# @ #?????????????????????? | | ??????????????????????## #?????????????????????? | | ??????????????????????#; #?????????????????????? | | ??????????????????????## #?????????????????????? | | ???????????????????????# #?????????????????????? | | ???????????????????????# #?????????????????????? | | ???????????????????????# #?????????????????????? | | ???????????????????????# #?????????????????????? | | ???????????????????????#z #?????????????????????? | | ??????????????????????? %! "?????????????????????? | | ??????????????????????? ?????????????????????? | | ??????????????????????? ????????????????????? | | ??????????????????????? ????????????????????? | | ??????????????????????? ????????????????????? | | ?????????????????????? ????????????????????? | | ??????????????????????" ????????????????????? | | ???????????????????????###"""????????????????????? | | ?????????????????????????????????????????????????? | | ?????????????????????????????????????????????????? | | ?????????????????????????????????????????????????? | | ?????????????????????????????????????????????????? | | ?????????????????????????????????????????????????? | | ?????????????????????????????????????????????????? | | ?????????????????????????????????????????????????? | | ?????????????????????????????????????????????????? | +----------------------------------------------------+ Best States ------------- Heat Dissipation 54 Energy Generation 14 Energy Capacity 160 Matter Stores 300 Matter Capacity 300 Sight Range 16 Terrain Scan Density 10 Core Shielding 20 Evasion (%) 55 Recoil Reduction 2 Item Schematics ----------------- None Robot Schematics ------------------ None Fabricated ------------ Nothing Repaired ---------- Nothing Studied --------- None Alien Tech Used ----------------- None Achievements -------------- None Challenges ------------ None Game ------ Seed TerrorJammingDoomcannon Manual? 0 Play Time 00:19:18 Cumulative 492.2 hours Start 2026.05.03 @ 15:17:28 End 2026.05.03 @ 15:36:41 Sessions 1 Manual Loads 0 Difficulty Rogue Special Mode None Game No. 418 Rogue 382 Adventurer 36 Explorer 0 Win Type - Total 21 Types 9/0/11/0/0/0/1/0/0/0 Lore% 73 Gallery% 85 Achievement% 70 Wizard Run 0 Options --------- Layout 0 ASCII 0 Keyboard 0 Movement Mouse Keybinds 0 Fullscreen 1 Font 18/SmallcapsGlow Map View 76x50 Zoom Use 0% Tactical HUD 1 Map Filters NONE Filters NONE Steam 1 RUN: ed773a46-3784-44d3-bc2d-920b238436ee